[Event "Late-Titled-Tuesday-Blitz-October-17-2023"]
[Site "Chess.com"]
[Date "2023.10.17"]
[Round "9"]
[White "Smiechu"]
[Black "mfwagnerpeixoto"]
[Result "1-0"]
[WhiteElo "2520"]
[BlackElo "2346"]
[TimeControl "180+1"]
[EndTime "15:41:49 PDT"]
[Termination "Smiechu won by resignation"]

1. e4 {[%clk 0:02:54.7]} 1... c5 {[%clk 0:02:59.3]} 2. Nf3 {[%clk 0:02:52.5]}
2... e6 {[%clk 0:02:59.7]} 3. d4 {[%clk 0:02:52.6]} 3... cxd4 {[%clk 0:03:00.6]}
4. Nxd4 {[%clk 0:02:52.7]} 4... Nc6 {[%clk 0:02:56.3]} 5. Nc3 {[%clk 0:02:53]}
5... Qc7 {[%clk 0:02:51.2]} 6. Be3 {[%clk 0:02:51.9]} 6... a6 {[%clk 0:02:50.9]}
7. Bd3 {[%clk 0:02:52.4]} 7... Nf6 {[%clk 0:02:46.8]} 8. O-O {[%clk 0:02:51.7]}
8... Bb4 {[%clk 0:02:41.1]} 9. f4 {[%clk 0:02:47.2]} 9... d6 {[%clk 0:02:18.3]}
10. Qf3 {[%clk 0:02:46.3]} 10... Nxd4 {[%clk 0:02:06.2]} 11. Bxd4 {[%clk
0:02:46]} 11... Bc5 {[%clk 0:02:04]} 12. Bxc5 {[%clk 0:02:42.5]} 12... Qxc5+
{[%clk 0:02:03.6]} 13. Kh1 {[%clk 0:02:43]} 13... e5 {[%clk 0:02:01.8]} 14. fxe5
{[%clk 0:02:41]} 14... Qxe5 {[%clk 0:01:51.5]} 15. Nd5 {[%clk 0:02:36.9]} 15...
Nxd5 {[%clk 0:01:50]} 16. Qxf7+ {[%clk 0:02:34.3]} 16... Kd8 {[%clk 0:01:50.3]}
17. exd5 {[%clk 0:02:33.6]} 17... Bd7 {[%clk 0:01:45.2]} 18. Rae1 {[%clk
0:02:31.4]} 18... Qxb2 {[%clk 0:01:45]} 19. Re7 {[%clk 0:02:29.4]} 19... Be8
{[%clk 0:01:34.3]} 20. Qe6 {[%clk 0:02:19.2]} 20... Qe5 {[%clk 0:01:27.4]} 21.
Qxe5 {[%clk 0:01:59]} 21... dxe5 {[%clk 0:01:28.3]} 22. Rxb7 {[%clk 0:01:52.6]}
22... g6 {[%clk 0:01:04.8]} 23. Rfb1 {[%clk 0:01:50.5]} 23... Rf8 {[%clk
0:00:43.1]} 24. c4 {[%clk 0:01:34.7]} 24... Rf4 {[%clk 0:00:18.1]} 25. Be2
{[%clk 0:01:12.5]} 25... Rc8 {[%clk 0:00:15.6]} 26. h3 {[%clk 0:01:02.8]} 26...
Rf2 {[%clk 0:00:15.2]} 27. Bf1 {[%clk 0:00:59.1]} 27... e4 {[%clk 0:00:13.7]}
28. Re1 {[%clk 0:00:54.5]} 28... Rf4 {[%clk 0:00:13.1]} 29. d6 {[%clk
0:00:46.2]} 29... Bf7 {[%clk 0:00:11.9]} 30. Rc1 {[%clk 0:00:33]} 30... Rc6
{[%clk 0:00:09.7]} 31. c5 {[%clk 0:00:29.6]} 31... Bxa2 {[%clk 0:00:08.2]} 32.
Rb6 {[%clk 0:00:29.3]} 32... Rxb6 {[%clk 0:00:07.4]} 33. cxb6 {[%clk 0:00:29.6]}
33... Bd5 {[%clk 0:00:05.7]} 34. Bxa6 {[%clk 0:00:29.2]} 34... e3 {[%clk
0:00:05]} 35. Kh2 {[%clk 0:00:21.9]} 35... Kd7 {[%clk 0:00:05]} 36. b7 {[%clk
0:00:21.1]} 36... Bxb7 {[%clk 0:00:04.2]} 37. Bxb7 {[%clk 0:00:21.4]} 37... Kxd6
{[%clk 0:00:04.6]} 38. Bf3 {[%clk 0:00:22]} 38... Ke5 {[%clk 0:00:04.3]} 39. Kg3
{[%clk 0:00:22.4]} 39... Rf5 {[%clk 0:00:02.4]} 40. Rc5+ {[%clk 0:00:22.2]}
40... Kd4 {[%clk 0:00:01.1]} 41. Rxf5 {[%clk 0:00:20.8]} 41... gxf5 {[%clk
0:00:02]} 42. Kf4 {[%clk 0:00:20.9]} 42... Kd3 {[%clk 0:00:02.6]} 43. Kxf5
{[%clk 0:00:19.4]} 43... e2 {[%clk 0:00:03.1]} 44. Bxe2+ {[%clk 0:00:19]} 44...
Kxe2 {[%clk 0:00:04]} 45. g4 {[%clk 0:00:18.6]} 45... Kf3 {[%clk 0:00:04.3]} 46.
h4 {[%clk 0:00:18.6]} 46... Kg3 {[%clk 0:00:04.3]} 47. h5 {[%clk 0:00:13.2]}
47... Kh4 {[%clk 0:00:04.3]} 48. Kf4 {[%clk 0:00:13.2]} 48... Kh3 {[%clk
0:00:03.2]} 49. Kg5 {[%clk 0:00:13.1]} 49... Kg3 {[%clk 0:00:03.2]} 50. h6
{[%clk 0:00:13]} 50... Kf3 {[%clk 0:00:03.1]} 51. Kf6 {[%clk 0:00:12.3]} 51...
Kxg4 {[%clk 0:00:03.4]} 52. Kg7 {[%clk 0:00:13]} 52... Kf5 {[%clk 0:00:03.8]}
53. Kxh7 {[%clk 0:00:13.1]} 53... Kf6 {[%clk 0:00:04.3]} 54. Kg8 {[%clk
0:00:13.7]} 1-0

[Event "Late-Titled-Tuesday-Blitz-October-17-2023"]
[Site "Chess.com"]
[Date "2023.10.17"]
[Round "9"]
[White "jcibarra"]
[Black "Byniolus"]
[Result "1-0"]
[WhiteElo "2901"]
[BlackElo "2766"]
[TimeControl "180+1"]
[EndTime "15:41:54 PDT"]
[Termination "jcibarra won on time"]

1. Nf3 {[%clk 0:02:51.3]} 1... d5 {[%clk 0:02:59.9]} 2. g3 {[%clk 0:02:51]} 2...
Nf6 {[%clk 0:02:59.8]} 3. Bg2 {[%clk 0:02:51.4]} 3... Bf5 {[%clk 0:02:59.9]} 4.
O-O {[%clk 0:02:51.5]} 4... e6 {[%clk 0:03:00.1]} 5. d3 {[%clk 0:02:52.1]} 5...
Be7 {[%clk 0:03:00.1]} 6. c4 {[%clk 0:02:51]} 6... c6 {[%clk 0:03:00.6]} 7. Be3
{[%clk 0:02:42.3]} 7... dxc4 {[%clk 0:03:00.5]} 8. dxc4 {[%clk 0:02:40.1]} 8...
Qxd1 {[%clk 0:03:01.4]} 9. Rxd1 {[%clk 0:02:40.3]} 9... Nbd7 {[%clk 0:03:00.7]}
10. Nd4 {[%clk 0:02:37.8]} 10... Be4 {[%clk 0:02:59]} 11. Nb3 {[%clk 0:02:29.3]}
11... Bxg2 {[%clk 0:02:50.2]} 12. Kxg2 {[%clk 0:02:30.2]} 12... O-O-O {[%clk
0:02:31.1]} 13. Nc3 {[%clk 0:02:08.9]} 13... Nb6 {[%clk 0:02:24.2]} 14. Nd2
{[%clk 0:01:56.3]} 14... Ng4 {[%clk 0:02:14.1]} 15. Bxb6 {[%clk 0:01:45.5]}
15... axb6 {[%clk 0:02:15]} 16. Nde4 {[%clk 0:01:40.6]} 16... f5 {[%clk
0:02:02]} 17. Nd2 {[%clk 0:01:33.5]} 17... Bc5 {[%clk 0:01:54.8]} 18. Nb3 {[%clk
0:01:16.3]} 18... Bb4 {[%clk 0:01:37.4]} 19. Na4 {[%clk 0:01:12.2]} 19... Kc7
{[%clk 0:01:30.6]} 20. Nd4 {[%clk 0:00:55.7]} 20... Rhe8 {[%clk 0:01:27.5]} 21.
a3 {[%clk 0:00:54.1]} 21... Bd6 {[%clk 0:01:18.8]} 22. Rac1 {[%clk 0:00:46.2]}
22... Be5 {[%clk 0:01:08]} 23. e3 {[%clk 0:00:45.5]} 23... Nf6 {[%clk 0:01:04]}
24. Nf3 {[%clk 0:00:38.8]} 24... Bd6 {[%clk 0:00:54.1]} 25. Nd4 {[%clk
0:00:28.3]} 25... g6 {[%clk 0:00:49.1]} 26. b4 {[%clk 0:00:25.2]} 26... Bf8
{[%clk 0:00:37.6]} 27. Nc3 {[%clk 0:00:20.4]} 27... e5 {[%clk 0:00:31]} 28. Nb3
{[%clk 0:00:19.3]} 28... Ra8 {[%clk 0:00:26.4]} 29. Nb1 {[%clk 0:00:18.1]} 29...
Red8 {[%clk 0:00:23.3]} 30. Kf1 {[%clk 0:00:17.7]} 30... e4 {[%clk 0:00:21.2]}
31. Ke2 {[%clk 0:00:17.3]} 31... Ng4 {[%clk 0:00:20.5]} 32. Nd4 {[%clk
0:00:16.6]} 32... Re8 {[%clk 0:00:16.8]} 33. h3 {[%clk 0:00:16.9]} 33... Ne5
{[%clk 0:00:16.6]} 34. Rc2 {[%clk 0:00:14.4]} 34... h5 {[%clk 0:00:09]} 35. Rg1
{[%clk 0:00:12.8]} 35... Rad8 {[%clk 0:00:03.6]} 36. Nd2 {[%clk 0:00:12.8]}
36... Ra8 {[%clk 0:00:02.8]} 37. Rc3 {[%clk 0:00:10.8]} 37... Rab8 {[%clk
0:00:01.7]} 38. Rb1 {[%clk 0:00:11.1]} 38... Rbd8 {[%clk 0:00:01.8]} 39. Rbc1
{[%clk 0:00:11]} 39... Kb8 {[%clk 0:00:02.2]} 40. Rb1 {[%clk 0:00:06.4]} 40...
Rd7 {[%clk 0:00:01.6]} 41. a4 {[%clk 0:00:06.3]} 41... Red8 {[%clk 0:00:02.1]}
42. a5 {[%clk 0:00:06.6]} 42... bxa5 {[%clk 0:00:01.9]} 43. bxa5 {[%clk
0:00:07.5]} 43... Kc7 {[%clk 0:00:02.8]} 44. Ne6+ {[%clk 0:00:07.4]} 44... Kd6
{[%clk 0:00:02.4]} 45. Nxd8 {[%clk 0:00:07.1]} 45... Rxd8 {[%clk 0:00:03.3]} 46.
Rxb7 {[%clk 0:00:07]} 46... Kc5 {[%clk 0:00:01.9]} 47. Nb3+ {[%clk 0:00:06.1]}
47... Kd6 {[%clk 0:00:02.5]} 48. a6 {[%clk 0:00:04.8]} 48... Ra8 {[%clk
0:00:02.2]} 49. a7 {[%clk 0:00:05.2]} 49... Ke6 {[%clk 0:00:02.1]} 50. Nd4+
{[%clk 0:00:04.7]} 50... Kf6 {[%clk 0:00:02.1]} 51. Rc1 {[%clk 0:00:04.1]} 51...
Bc5 {[%clk 0:00:02.2]} 52. Ra1 {[%clk 0:00:04.1]} 52... Nxc4 {[%clk 0:00:01.3]}
53. Ra6 {[%clk 0:00:04]} 53... Ne5 {[%clk 0:00:01.6]} 54. Nxc6 {[%clk
0:00:03.8]} 1-0

[Event "Late-Titled-Tuesday-Blitz-October-17-2023"]
[Site "Chess.com"]
[Date "2023.10.17"]
[Round "9"]
[White "ckgchess"]
[Black "BogdanDeac"]
[Result "0-1"]
[WhiteElo "2869"]
[BlackElo "2986"]
[TimeControl "180+1"]
[EndTime "15:41:59 PDT"]
[Termination "BogdanDeac won on time"]

1. e4 {[%clk 0:03:00.9]} 1... c6 {[%clk 0:02:53.7]} 2. d4 {[%clk 0:02:59.9]}
2... d5 {[%clk 0:02:54.6]} 3. e5 {[%clk 0:03:00.5]} 3... Bf5 {[%clk 0:02:54.6]}
4. h4 {[%clk 0:03:00.3]} 4... h5 {[%clk 0:02:54.8]} 5. c4 {[%clk 0:03:00.4]}
5... e6 {[%clk 0:02:54.9]} 6. Nc3 {[%clk 0:03:00.7]} 6... dxc4 {[%clk
0:02:50.5]} 7. Bxc4 {[%clk 0:03:01.6]} 7... Be7 {[%clk 0:02:50.5]} 8. g3 {[%clk
0:02:59.9]} 8... Bg4 {[%clk 0:02:46.9]} 9. f3 {[%clk 0:02:57.7]} 9... Bf5 {[%clk
0:02:46.4]} 10. Nge2 {[%clk 0:02:58.2]} 10... Nd7 {[%clk 0:02:44.2]} 11. Bf4
{[%clk 0:02:57]} 11... Nb6 {[%clk 0:02:41.8]} 12. Bd3 {[%clk 0:02:55.9]} 12...
Bxd3 {[%clk 0:02:34.9]} 13. Qxd3 {[%clk 0:02:56.8]} 13... Nh6 {[%clk 0:02:21.6]}
14. Bxh6 {[%clk 0:02:56.5]} 14... Rxh6 {[%clk 0:02:21.1]} 15. O-O-O {[%clk
0:02:48.5]} 15... Qc7 {[%clk 0:02:11.6]} 16. Kb1 {[%clk 0:02:45.5]} 16... O-O-O
{[%clk 0:02:11.2]} 17. f4 {[%clk 0:02:37.4]} 17... g6 {[%clk 0:02:06.2]} 18. Ne4
{[%clk 0:02:35.3]} 18... Nd5 {[%clk 0:01:54.9]} 19. Rc1 {[%clk 0:02:34.6]} 19...
Rhh8 {[%clk 0:01:47.1]} 20. a3 {[%clk 0:02:34.5]} 20... Qb6 {[%clk 0:01:46.4]}
21. Rc4 {[%clk 0:02:24.8]} 21... Rd7 {[%clk 0:01:34.3]} 22. Rhc1 {[%clk
0:02:23.9]} 22... Rhd8 {[%clk 0:01:18]} 23. Ka1 {[%clk 0:02:24.2]} 23... Kb8
{[%clk 0:01:17]} 24. Qf3 {[%clk 0:02:23.1]} 24... Nc7 {[%clk 0:01:05.4]} 25.
R1c3 {[%clk 0:02:04.8]} 25... Nb5 {[%clk 0:00:58.9]} 26. Rb3 {[%clk 0:02:05]}
26... Qa6 {[%clk 0:00:32.8]} 27. Qd3 {[%clk 0:02:05.3]} 27... Ka8 {[%clk
0:00:29.6]} 28. Kb1 {[%clk 0:01:40.9]} 28... Rd5 {[%clk 0:00:28.1]} 29. a4
{[%clk 0:01:04.7]} 29... Nc7 {[%clk 0:00:24.1]} 30. N4c3 {[%clk 0:01:00.7]}
30... R5d7 {[%clk 0:00:22.2]} 31. Ne4 {[%clk 0:01:00.4]} 31... Nd5 {[%clk
0:00:21.3]} 32. Qc2 {[%clk 0:00:58.2]} 32... Nb6 {[%clk 0:00:17.5]} 33. Rcc3
{[%clk 0:00:49.3]} 33... Nxa4 {[%clk 0:00:11.7]} 34. Rd3 {[%clk 0:00:45.6]}
34... Nb6 {[%clk 0:00:11.3]} 35. Qd1 {[%clk 0:00:31.6]} 35... Nd5 {[%clk
0:00:10.6]} 36. N2c3 {[%clk 0:00:24.7]} 36... Nb4 {[%clk 0:00:07]} 37. Rd2
{[%clk 0:00:20.7]} 37... Qa5 {[%clk 0:00:06.5]} 38. Ra3 {[%clk 0:00:19.7]} 38...
Qc7 {[%clk 0:00:05.3]} 39. Qa4 {[%clk 0:00:18.2]} 39... b5 {[%clk 0:00:03.9]}
40. Qd1 {[%clk 0:00:16.9]} 40... Qb6 {[%clk 0:00:04.3]} 41. Ne2 {[%clk
0:00:16.1]} 41... a5 {[%clk 0:00:03.6]} 42. Rc3 {[%clk 0:00:14.3]} 42... Nd5
{[%clk 0:00:03.2]} 43. Rc5 {[%clk 0:00:14.7]} 43... Bxc5 {[%clk 0:00:02.9]} 44.
dxc5 {[%clk 0:00:15.6]} 44... Qa7 {[%clk 0:00:03.4]} 45. Qc1 {[%clk 0:00:14.1]}
45... a4 {[%clk 0:00:03.4]} 46. Nd6 {[%clk 0:00:14.4]} 46... b4 {[%clk
0:00:03.4]} 47. Nd4 {[%clk 0:00:14.3]} 47... Rc7 {[%clk 0:00:03.5]} 48. Qc4
{[%clk 0:00:14.5]} 48... Rb8 {[%clk 0:00:03.7]} 49. Nc2 {[%clk 0:00:08.9]} 49...
Qa5 {[%clk 0:00:03.5]} 50. Nd4 {[%clk 0:00:07.8]} 50... Ka7 {[%clk 0:00:02.4]}
51. Kc1 {[%clk 0:00:07.6]} 51... Qa6 {[%clk 0:00:02.9]} 52. Qc2 {[%clk
0:00:06.4]} 52... Rb5 {[%clk 0:00:03.2]} 53. N4xb5+ {[%clk 0:00:05.8]} 53...
cxb5 {[%clk 0:00:03.6]} 54. Kd1 {[%clk 0:00:05.4]} 54... Ne3+ {[%clk 0:00:03.1]}
0-1

[Event "Late-Titled-Tuesday-Blitz-October-17-2023"]
[Site "Chess.com"]
[Date "2023.10.17"]
[Round "9"]
[White "johnmez"]
[Black "ChessSwole"]
[Result "1-0"]
[WhiteElo "2339"]
[BlackElo "2720"]
[TimeControl "180+1"]
[EndTime "15:42:00 PDT"]
[Termination "johnmez won by resignation"]

1. d4 {[%clk 0:02:49.5]} 1... g6 {[%clk 0:02:56.4]} 2. c4 {[%clk 0:02:48.7]}
2... Bg7 {[%clk 0:02:56.6]} 3. e4 {[%clk 0:02:46.7]} 3... d6 {[%clk 0:02:56.2]}
4. Nc3 {[%clk 0:02:46.3]} 4... Nf6 {[%clk 0:02:56]} 5. f3 {[%clk 0:02:46.4]}
5... O-O {[%clk 0:02:55.2]} 6. Bg5 {[%clk 0:02:46.8]} 6... h6 {[%clk 0:02:41.1]}
7. Be3 {[%clk 0:02:45.9]} 7... c5 {[%clk 0:02:41.2]} 8. d5 {[%clk 0:02:44.5]}
8... e6 {[%clk 0:02:40.6]} 9. Qd2 {[%clk 0:02:43]} 9... h5 {[%clk 0:02:38.8]}
10. Nge2 {[%clk 0:02:32.8]} 10... exd5 {[%clk 0:02:37]} 11. cxd5 {[%clk
0:02:30.8]} 11... a6 {[%clk 0:02:37.1]} 12. a4 {[%clk 0:02:30.8]} 12... Nbd7
{[%clk 0:02:32.9]} 13. Nc1 {[%clk 0:02:27.4]} 13... Ne5 {[%clk 0:02:29.7]} 14.
Be2 {[%clk 0:02:26.9]} 14... Bd7 {[%clk 0:02:11.3]} 15. O-O {[%clk 0:02:26.7]}
15... b5 {[%clk 0:02:09.3]} 16. axb5 {[%clk 0:02:12.7]} 16... axb5 {[%clk
0:02:10.2]} 17. Rxa8 {[%clk 0:02:11.1]} 17... Qxa8 {[%clk 0:02:11.1]} 18. Nxb5
{[%clk 0:02:07.6]} 18... Bxb5 {[%clk 0:02:06.4]} 19. Bxb5 {[%clk 0:02:06.6]}
19... Rb8 {[%clk 0:02:05.9]} 20. Be2 {[%clk 0:02:01.5]} 20... Qb7 {[%clk
0:01:51.8]} 21. b3 {[%clk 0:02:01.1]} 21... Ne8 {[%clk 0:01:39.7]} 22. h3 {[%clk
0:01:47.9]} 22... Nc7 {[%clk 0:01:26.8]} 23. f4 {[%clk 0:01:46.6]} 23... Nd7
{[%clk 0:01:27.1]} 24. Bc4 {[%clk 0:01:36.1]} 24... Re8 {[%clk 0:01:21.3]} 25.
e5 {[%clk 0:01:31.6]} 25... dxe5 {[%clk 0:01:16.8]} 26. f5 {[%clk 0:01:31.3]}
26... Nb5 {[%clk 0:00:44.3]} 27. d6 {[%clk 0:01:16.7]} 27... gxf5 {[%clk
0:00:27.6]} 28. Rxf5 {[%clk 0:01:09.3]} 28... Re6 {[%clk 0:00:17.7]} 29. Bxe6
{[%clk 0:00:50.6]} 29... fxe6 {[%clk 0:00:18.6]} 30. Rf1 {[%clk 0:00:46.3]}
30... Nd4 {[%clk 0:00:18.6]} 31. Bh6 {[%clk 0:00:42.4]} 31... Nf6 {[%clk
0:00:15.1]} 32. Qg5 {[%clk 0:00:32.4]} 32... Nf5 {[%clk 0:00:12.9]} 33. Bxg7
{[%clk 0:00:25.3]} 33... Qxg7 {[%clk 0:00:13.8]} 34. Qxg7+ {[%clk 0:00:23.1]}
34... Kxg7 {[%clk 0:00:14.7]} 35. Nd3 {[%clk 0:00:23.1]} 35... e4 {[%clk
0:00:12.9]} 36. Nxc5 {[%clk 0:00:21.3]} 36... Nxd6 {[%clk 0:00:13.3]} 37. Nxe6+
{[%clk 0:00:19.4]} 37... Kg6 {[%clk 0:00:12.8]} 38. Nf4+ {[%clk 0:00:17]} 38...
Kg5 {[%clk 0:00:12.8]} 39. b4 {[%clk 0:00:15.4]} 39... e3 {[%clk 0:00:12.5]} 40.
Ne2 {[%clk 0:00:13.5]} 40... Nb5 {[%clk 0:00:12.3]} 41. Rc1 {[%clk 0:00:12.7]}
41... Kg6 {[%clk 0:00:11.4]} 42. Rc5 {[%clk 0:00:11.9]} 42... Nd6 {[%clk
0:00:10.4]} 43. Re5 {[%clk 0:00:11.4]} 43... Nfe4 {[%clk 0:00:11.3]} 44. b5
{[%clk 0:00:10.4]} 44... Kf6 {[%clk 0:00:09.8]} 45. Rxh5 {[%clk 0:00:09.8]}
45... Ke6 {[%clk 0:00:09.6]} 46. Rh6+ {[%clk 0:00:08.6]} 46... Kd7 {[%clk
0:00:09.6]} 47. h4 {[%clk 0:00:08.3]} 47... Nxb5 {[%clk 0:00:09.7]} 48. Rh7+
{[%clk 0:00:07.1]} 48... Ke6 {[%clk 0:00:09.6]} 49. h5 {[%clk 0:00:07.3]} 49...
Kf6 {[%clk 0:00:08.7]} 50. Rb7 {[%clk 0:00:06.9]} 50... Nbc3 {[%clk 0:00:08.2]}
51. Nxc3 {[%clk 0:00:05.9]} 51... Nxc3 {[%clk 0:00:09.1]} 52. Kf1 {[%clk
0:00:05.4]} 52... Kg5 {[%clk 0:00:08.6]} 53. Rb3 {[%clk 0:00:05.3]} 53... Nd5
{[%clk 0:00:05.6]} 54. Rb5 {[%clk 0:00:05.2]} 54... Kxh5 {[%clk 0:00:04.7]} 55.
Rxd5+ {[%clk 0:00:05.2]} 55... Kg4 {[%clk 0:00:05.6]} 56. Re5 {[%clk 0:00:05.7]}
1-0

[Event "Late-Titled-Tuesday-Blitz-October-17-2023"]
[Site "Chess.com"]
[Date "2023.10.17"]
[Round "9"]
[White "Zhigalko_Sergei"]
[Black "vladislavkovalev"]
[Result "0-1"]
[WhiteElo "2941"]
[BlackElo "2884"]
[TimeControl "180+1"]
[EndTime "15:42:01 PDT"]
[Termination "vladislavkovalev won on time"]

1. e4 {[%clk 0:03:00.9]} 1... e5 {[%clk 0:02:58.7]} 2. Nf3 {[%clk 0:03:01.2]}
2... Nc6 {[%clk 0:02:59.3]} 3. Bb5 {[%clk 0:03:01.8]} 3... a6 {[%clk 0:02:57.9]}
4. Ba4 {[%clk 0:03:02.1]} 4... d6 {[%clk 0:02:55.8]} 5. O-O {[%clk 0:03:00.7]}
5... Bd7 {[%clk 0:02:54.7]} 6. c3 {[%clk 0:03:00.6]} 6... Nf6 {[%clk 0:02:52.7]}
7. Re1 {[%clk 0:03:00.7]} 7... g6 {[%clk 0:02:52.5]} 8. d4 {[%clk 0:02:58.6]}
8... Bg7 {[%clk 0:02:52.9]} 9. Bxc6 {[%clk 0:02:33.4]} 9... Bxc6 {[%clk
0:02:51.3]} 10. dxe5 {[%clk 0:02:34.3]} 10... Nxe4 {[%clk 0:02:50.4]} 11. exd6
{[%clk 0:02:26.4]} 11... O-O {[%clk 0:02:45.7]} 12. dxc7 {[%clk 0:02:22.1]}
12... Qxc7 {[%clk 0:02:46.6]} 13. Be3 {[%clk 0:02:21]} 13... Rad8 {[%clk
0:02:43]} 14. Bd4 {[%clk 0:02:16.7]} 14... Nc5 {[%clk 0:02:21.3]} 15. Nbd2
{[%clk 0:01:11.8]} 15... Nd3 {[%clk 0:02:19.9]} 16. Re3 {[%clk 0:01:11.3]} 16...
Nxb2 {[%clk 0:02:03.2]} 17. Qb3 {[%clk 0:01:11]} 17... Na4 {[%clk 0:02:02.5]}
18. Rae1 {[%clk 0:01:00.8]} 18... b5 {[%clk 0:01:41.3]} 19. Bxg7 {[%clk
0:00:49.2]} 19... Kxg7 {[%clk 0:01:42.2]} 20. Nd4 {[%clk 0:00:49.8]} 20... Bd5
{[%clk 0:01:34.4]} 21. Qc2 {[%clk 0:00:20.5]} 21... Rc8 {[%clk 0:01:18.9]} 22.
c4 {[%clk 0:00:12.9]} 22... Bxc4 {[%clk 0:01:03.9]} 23. Re7 {[%clk 0:00:08.4]}
23... Qd6 {[%clk 0:00:59]} 24. N2f3 {[%clk 0:00:08.3]} 24... Qf6 {[%clk
0:00:40.3]} 25. Qe4 {[%clk 0:00:04.4]} 25... Nc5 {[%clk 0:00:35.4]} 26. Qe3
{[%clk 0:00:03.2]} 26... Nd3 {[%clk 0:00:29]} 27. Rd1 {[%clk 0:00:03]} 27... Nf4
{[%clk 0:00:15]} 28. Qe4 {[%clk 0:00:03.4]} 28... Bd5 {[%clk 0:00:13.1]} 29. Qe3
{[%clk 0:00:03.8]} 29... Rcd8 {[%clk 0:00:11.8]} 30. Re1 {[%clk 0:00:02.5]}
30... Rd6 {[%clk 0:00:06.5]} 31. Nd2 {[%clk 0:00:01.9]} 31... Ne6 {[%clk
0:00:06.2]} 32. Nxe6+ {[%clk 0:00:01.9]} 32... Rxe6 {[%clk 0:00:07.1]} 33. Rxe6
{[%clk 0:00:02.3]} 33... Qxe6 {[%clk 0:00:07.7]} 34. Qd4+ {[%clk 0:00:02.3]}
34... Qf6 {[%clk 0:00:07.4]} 35. Qxd5 {[%clk 0:00:02.8]} 35... Rd8 {[%clk
0:00:08.2]} 36. Qc5 {[%clk 0:00:01.4]} 36... Rxd2 {[%clk 0:00:08.2]} 37. a3
{[%clk 0:00:01.9]} 37... Qd4 {[%clk 0:00:07.6]} 38. Qxd4+ {[%clk 0:00:01.4]}
38... Rxd4 {[%clk 0:00:08.5]} 39. g3 {[%clk 0:00:01.4]} 39... Rd3 {[%clk
0:00:07]} 40. a4 {[%clk 0:00:01.9]} 40... bxa4 {[%clk 0:00:03.2]} 41. Re4 {[%clk
0:00:02.2]} 41... Rd5 {[%clk 0:00:02.9]} 42. Rxa4 {[%clk 0:00:02.2]} 42... a5
{[%clk 0:00:03.7]} 43. h4 {[%clk 0:00:02.5]} 43... Kf6 {[%clk 0:00:04.3]} 44.
Kg2 {[%clk 0:00:02.6]} 44... Ke6 {[%clk 0:00:04.9]} 45. Rc4 {[%clk 0:00:02.7]}
45... Kd6 {[%clk 0:00:05.3]} 46. Rc8 {[%clk 0:00:02.8]} 46... Rc5 {[%clk
0:00:05.1]} 47. Ra8 {[%clk 0:00:02.4]} 47... Kc6 {[%clk 0:00:04.7]} 48. Ra7
{[%clk 0:00:02.5]} 48... Kb6 {[%clk 0:00:04.2]} 49. Rxf7 {[%clk 0:00:03]} 49...
a4 {[%clk 0:00:04.9]} 50. Rxh7 {[%clk 0:00:02.1]} 50... a3 {[%clk 0:00:05.4]}
51. Rh8 {[%clk 0:00:02.7]} 51... a2 {[%clk 0:00:03.2]} 52. Rb8+ {[%clk
0:00:02.1]} 52... Ka7 {[%clk 0:00:03.5]} 53. Rf8 {[%clk 0:00:01.8]} 53... a1=Q
{[%clk 0:00:03.6]} 54. Rf7+ {[%clk 0:00:02.5]} 54... Kb6 {[%clk 0:00:04.1]} 55.
Ra7 {[%clk 0:00:03.3]} 55... Qxa7 {[%clk 0:00:03.9]} 0-1

[Event "Late-Titled-Tuesday-Blitz-October-17-2023"]
[Site "Chess.com"]
[Date "2023.10.17"]
[Round "9"]
[White "RichardShtivelband"]
[Black "NigelDwarf"]
[Result "1-0"]
[WhiteElo "2220"]
[BlackElo "2547"]
[TimeControl "180+1"]
[EndTime "15:42:04 PDT"]
[Termination "RichardShtivelband won on time"]

1. d4 {[%clk 0:02:55.5]} 1... Nf6 {[%clk 0:02:58.4]} 2. c4 {[%clk 0:02:54.2]}
2... a6 {[%clk 0:02:52.7]} 3. Nc3 {[%clk 0:02:52.1]} 3... c5 {[%clk 0:02:46.6]}
4. dxc5 {[%clk 0:02:43.5]} 4... e6 {[%clk 0:02:45.3]} 5. Be3 {[%clk 0:02:40.8]}
5... Ng4 {[%clk 0:02:44.3]} 6. Qd2 {[%clk 0:02:32.8]} 6... Nxe3 {[%clk
0:02:39.2]} 7. Qxe3 {[%clk 0:02:32.3]} 7... Qc7 {[%clk 0:02:39.7]} 8. Ne4 {[%clk
0:02:29.4]} 8... Nc6 {[%clk 0:02:17.3]} 9. O-O-O {[%clk 0:02:28.2]} 9... f5
{[%clk 0:01:55.3]} 10. Nd6+ {[%clk 0:02:27.5]} 10... Bxd6 {[%clk 0:01:54.4]} 11.
cxd6 {[%clk 0:02:27.6]} 11... Qa5 {[%clk 0:01:53.4]} 12. Kb1 {[%clk 0:02:25.4]}
12... O-O {[%clk 0:01:51.2]} 13. Nf3 {[%clk 0:02:23.1]} 13... b5 {[%clk
0:01:39.8]} 14. c5 {[%clk 0:02:20.8]} 14... Bb7 {[%clk 0:01:36.2]} 15. Ne5
{[%clk 0:02:12.3]} 15... Qa4 {[%clk 0:00:53.9]} 16. b3 {[%clk 0:02:07.4]} 16...
Qa3 {[%clk 0:00:53.3]} 17. Nxc6 {[%clk 0:01:48.7]} 17... Bxc6 {[%clk 0:00:52]}
18. f3 {[%clk 0:01:48.7]} 18... a5 {[%clk 0:00:51.4]} 19. Qc1 {[%clk 0:01:43.8]}
19... Qb4 {[%clk 0:00:49.2]} 20. e3 {[%clk 0:01:39.1]} 20... a4 {[%clk
0:00:46.9]} 21. Rd4 {[%clk 0:01:38.8]} 21... Qa5 {[%clk 0:00:43.5]} 22. b4
{[%clk 0:01:38.8]} 22... Qa7 {[%clk 0:00:43.8]} 23. a3 {[%clk 0:01:38.3]} 23...
e5 {[%clk 0:00:43.2]} 24. Rd2 {[%clk 0:01:35.7]} 24... Qb7 {[%clk 0:00:42.1]}
25. Be2 {[%clk 0:01:34.2]} 25... Bd5 {[%clk 0:00:40.4]} 26. Bxb5 {[%clk
0:01:26.6]} 26... Kh8 {[%clk 0:00:17.2]} 27. Bc4 {[%clk 0:01:25.3]} 27... Bc6
{[%clk 0:00:16.2]} 28. Rhd1 {[%clk 0:01:22.4]} 28... Rac8 {[%clk 0:00:16.1]} 29.
Bd5 {[%clk 0:01:21.8]} 29... Qb5 {[%clk 0:00:15.3]} 30. Bxc6 {[%clk 0:01:20.3]}
30... Rxc6 {[%clk 0:00:15.3]} 31. Qb2 {[%clk 0:01:18.7]} 31... e4 {[%clk
0:00:13.8]} 32. fxe4 {[%clk 0:01:11.1]} 32... fxe4 {[%clk 0:00:13.6]} 33. Rd4
{[%clk 0:01:08.8]} 33... Re8 {[%clk 0:00:09.6]} 34. R1d2 {[%clk 0:01:04.4]}
34... Rcc8 {[%clk 0:00:08.9]} 35. Qc2 {[%clk 0:01:01.4]} 35... Re5 {[%clk
0:00:08.2]} 36. Rxe4 {[%clk 0:00:49.5]} 36... Rf5 {[%clk 0:00:06.7]} 37. Rc4
{[%clk 0:00:46.4]} 37... Rf1+ {[%clk 0:00:06.1]} 38. Ka2 {[%clk 0:00:44]} 38...
Re8 {[%clk 0:00:06.2]} 39. e4 {[%clk 0:00:43.3]} 39... Qc6 {[%clk 0:00:06.3]}
40. Rf2 {[%clk 0:00:37.5]} 40... Re1 {[%clk 0:00:05.2]} 41. Qd3 {[%clk
0:00:28.2]} 41... h6 {[%clk 0:00:04.7]} 42. Qd5 {[%clk 0:00:24.5]} 42... Qc8
{[%clk 0:00:04.2]} 43. Rf7 {[%clk 0:00:16.9]} 43... Qd8 {[%clk 0:00:03.4]} 44.
c6 {[%clk 0:00:11.2]} 44... dxc6 {[%clk 0:00:03]} 45. Rxc6 {[%clk 0:00:10.3]}
45... Re2+ {[%clk 0:00:03.3]} 46. Kb1 {[%clk 0:00:09.9]} 46... Qg5 {[%clk
0:00:03.2]} 47. Rc2 {[%clk 0:00:05.5]} 47... Qxg2 {[%clk 0:00:01.4]} 48. Rxe2
{[%clk 0:00:03.6]} 48... Qxe2 {[%clk 0:00:02.3]} 49. d7 {[%clk 0:00:03.8]} 49...
Qe1+ {[%clk 0:00:02.6]} 50. Kc2 {[%clk 0:00:04.1]} 50... Qe2+ {[%clk 0:00:03]}
51. Kc3 {[%clk 0:00:04.5]} 51... Qe3+ {[%clk 0:00:03.3]} 52. Kc4 {[%clk
0:00:04.9]} 52... Qb3+ {[%clk 0:00:03.6]} 53. Kc5 {[%clk 0:00:04.7]} 53... Qc3+
{[%clk 0:00:04]} 54. Kd6 {[%clk 0:00:04.6]} 54... Rd8 {[%clk 0:00:03.2]} 55. Ke7
{[%clk 0:00:04.2]} 55... Qc7 {[%clk 0:00:03.2]} 56. Qd6 {[%clk 0:00:04]} 1-0